fUSD/lending_fUSD_20240212
["ID","MTS","AMOUNT","RATE_DAILY","PERIOD"]
[313816733,1707735086075,-921.9,0.00024049,2]
[313816734,1707735086085,-2812.9,0.00024049,2]
[313816735,1707735086094,-500.0,0.00024049,2]
[313816736,1707735086104,-8672.72,0.00024049,2]
[313816737,1707735086114,-2608.04294306,0.0002405,2]
[313816738,1707735086123,-259.72344277,0.0002405,2]
[313816739,1707735086132,-500.0,0.0002405,2]
[313816740,1707735086141,-316.47,0.0002405,2]
[313816741,1707735086150,-500.0,0.0002405,2]
[313816742,1707735086159,-500.0,0.0002405,2]
[313816743,1707735086168,-500.0,0.0002405,2]
[313816744,1707735086178,-500.0,0.0002405,2]
[313816745,1707735086187,-500.0,0.0002405,2]
[313816746,1707735086196,-642.91360111,0.0002405,2]
[313816747,1707735086205,-500.0,0.0002405,2]
[313816748,1707735086217,-500.0,0.0002405,2]
[313816749,1707735086226,-500.0,0.0002405,2]
[313816750,1707735086236,-500.0,0.0002405,2]
[313816751,1707735086245,-500.0,0.0002405,2]
[313816752,1707735086255,-500.0,0.0002405,2]
[313816753,1707735086265,-500.0,0.0002405,2]
[313816754,1707735086275,-500.0,0.0002405,2]
[313816755,1707735086284,-500.0,0.0002405,2]
[313816756,1707735086293,-564.35,0.0002405,2]
[313816757,1707735086302,-939.38,0.0002405,2]
[313816758,1707735086312,-500.0,0.0002405,2]
[313816759,1707735086322,-500.0,0.0002405,2]
[313816760,1707735086331,-500.0,0.0002405,2]
[313816761,1707735086341,-500.0,0.0002405,2]
[313816762,1707735086350,-500.0,0.0002405,2]
[313816763,1707735086360,-500.0,0.0002405,2]
[313816764,1707735086369,-500.0,0.0002405,2]
[313816765,1707735086378,-615.97,0.0002405,2]
[313816766,1707735086387,-529.98831664,0.0002405,2]
[313816767,1707735086397,-500.0,0.0002405,2]
[313816768,1707735086406,-500.0,0.0002405,2]
[313816769,1707735086415,-808.34,0.0002405,2]
[313816770,1707735086425,-500.0,0.0002405,2]
[313816771,1707735086434,-500.0,0.0002405,2]
[313816772,1707735086446,-500.0,0.0002405,2]
[313816773,1707735086456,-500.0,0.0002405,2]
[313816774,1707735086466,-500.0,0.0002405,2]
[313816775,1707735086475,-500.0,0.0002405,2]
[313816776,1707735086486,-500.0,0.0002405,2]
[313816777,1707735086496,-500.0,0.0002405,2]
[313816778,1707735086505,-547.82692956,0.0002405,2]
[313816779,1707735086514,-500.0,0.0002405,2]
[313816780,1707735086523,-500.0,0.0002405,2]
[313816781,1707735086533,-500.0,0.0002405,2]
[313816782,1707735086542,-500.0,0.0002405,2]
[313816783,1707735086551,-500.0,0.0002405,2]
[313816784,1707735086560,-200.69933272,0.0002405,2]
[313816785,1707735086570,-500.0,0.0002405,2]
[313816786,1707735086579,-500.0,0.0002405,2]
[313816787,1707735086588,-500.0,0.0002405,2]
[313816788,1707735086598,-500.0,0.0002405,2]
[313816789,1707735086607,-500.0,0.0002405,2]
[313816790,1707735086618,-500.0,0.0002405,2]
[313816791,1707735086627,-163.58357407,0.0002405,2]
[313816792,1707735086636,-500.0,0.0002405,2]
[313816793,1707735086645,-500.0,0.0002405,2]
[313816794,1707735086654,-500.0,0.0002405,2]
[313816795,1707735086664,-509.14,0.0002405,2]
[313816796,1707735086672,-500.0,0.0002405,2]
[313816797,1707735086681,-542.4819708,0.0002405,2]
[313816798,1707735086691,-500.0,0.0002405,2]
[313816799,1707735086700,-783.3,0.0002405,2]
[313816800,1707735086710,-500.0,0.0002405,2]
[313816801,1707735086719,-707.32,0.0002405,2]
[313816802,1707735086728,-500.0,0.0002405,2]
[313816803,1707735086737,-500.0,0.0002405,2]
[313816804,1707735086746,-500.0,0.0002405,2]
[313816805,1707735086755,-500.0,0.0002405,2]
[313816806,1707735086764,-618.89,0.0002405,2]
[313816807,1707735086773,-500.0,0.0002405,2]
[313816808,1707735086782,-500.0,0.0002405,2]
[313816809,1707735086794,-500.0,0.0002405,2]
[313816810,1707735086802,-500.0,0.0002405,2]
[313816811,1707735086811,-500.0,0.0002405,2]
[313816812,1707735086821,-2711.38,0.0002405,2]
[313816813,1707735086830,-500.0,0.0002405,2]
[313816814,1707735086839,-1469.44,0.0002405,2]
[313816815,1707735086849,-681.86,0.0002405,2]
[313816816,1707735086857,-500.0,0.0002405,2]
[313816817,1707735086866,-537.01,0.0002405,2]
[313816818,1707735086876,-2252.02,0.0002405,2]
[313816819,1707735086885,-688.56,0.0002405,2]
[313816820,1707735086895,-500.0,0.0002405,2]
[313816821,1707735086904,-500.0,0.0002405,2]
[313816822,1707735086914,-500.0,0.0002405,2]
[313816823,1707735086924,-500.0,0.0002405,2]
[313816824,1707735086933,-500.0,0.0002405,2]
[313816825,1707735086943,-500.0,0.0002405,2]
[313816826,1707735086953,-500.0,0.0002405,2]
[313816827,1707735086963,-500.0,0.0002405,2]
[313816828,1707735086972,-500.0,0.0002405,2]
[313816829,1707735086981,-500.0,0.0002405,2]
[313816830,1707735086990,-1838.36,0.0002405,2]
[313816831,1707735086998,-230.02444445,0.0002405,2]
[313816832,1707735087008,-500.0,0.0002405,2]
[313816833,1707735087018,-406.08816139,0.0002405,2]
[313816834,1707735087027,-500.0,0.0002405,2]
[313816835,1707735087035,-500.0,0.0002405,2]
[313816836,1707735087045,-263.95331938,0.0002405,2]
[313816837,1707735087054,-500.0,0.0002405,2]
[313816838,1707735087064,-500.0,0.0002405,2]
[313816839,1707735087073,-500.0,0.0002405,2]
[313816840,1707735087083,-500.0,0.0002405,2]
[313816841,1707735087093,-500.0,0.0002405,2]
[313816842,1707735087102,-500.0,0.0002405,2]
[313816843,1707735087112,-653.74,0.0002405,2]
[313816844,1707735087122,-500.0,0.0002405,2]
[313816845,1707735087132,-500.0,0.0002405,2]
[313816846,1707735087141,-500.0,0.0002405,2]
[313816847,1707735087150,-4603.61,0.0002405,2]
[313816848,1707735087159,-500.0,0.0002405,2]
[313816849,1707735087169,-233.32862863,0.0002405,2]
[313816850,1707735087178,-939.6,0.0002405,2]
[313816851,1707735087188,-500.0,0.0002405,2]
[313816852,1707735087197,-500.0,0.0002405,2]
[313816853,1707735087207,-911.93,0.0002405,2]
[313816854,1707735087218,-500.0,0.0002405,2]
[313816855,1707735087227,-180.85066902,0.0002405,2]
[313816856,1707735087236,-1543.06,0.0002405,2]
[313816857,1707735087245,-793.68,0.0002405,2]
[313816858,1707735087254,-659.79,0.0002405,2]
[313816859,1707735087264,-500.0,0.0002405,2]
[313816860,1707735087273,-500.0,0.0002405,2]
[313816861,1707735087282,-2800.78,0.0002405,2]
[313816862,1707735087291,-500.0,0.0002405,2]
[313816863,1707735087301,-500.0,0.0002405,2]
[313816864,1707735087311,-500.0,0.0002405,2]
[313816865,1707735087321,-703.75,0.0002405,2]
[313816866,1707735087330,-607.76,0.0002405,2]
[313816867,1707735087339,-500.0,0.0002405,2]
[313816868,1707735087348,-500.0,0.0002405,2]
[313816869,1707735087358,-612.44,0.0002405,2]
[313816870,1707735087367,-540.31,0.0002405,2]
[313816871,1707735087376,-500.0,0.0002405,2]
[313816872,1707735087385,-597.88,0.0002405,2]
[313816873,1707735087395,-500.0,0.0002405,2]
[313816874,1707735087404,-500.0,0.0002405,2]
[313816875,1707735087413,-703.76,0.0002405,2]
[313816876,1707735087423,-500.0,0.0002405,2]
[313816877,1707735087432,-500.0,0.0002405,2]
[313816878,1707735087442,-605.58,0.0002405,2]
[313816879,1707735087454,-500.0,0.0002405,2]
[313816880,1707735087463,-990.95,0.0002405,2]
[313816881,1707735087473,-556.38,0.0002405,2]
[313816882,1707735087482,-713.73,0.0002405,2]
[313816883,1707735087492,-500.0,0.0002405,2]
[313816884,1707735087501,-500.0,0.0002405,2]
[313816885,1707735087510,-500.0,0.0002405,2]
[313816886,1707735087520,-762.09,0.0002405,2]
[313816887,1707735087530,-500.0,0.0002405,2]
[313816888,1707735087539,-1678.01,0.0002405,2]
[313816889,1707735087548,-731.06,0.0002405,2]
[313816890,1707735087558,-612.73,0.0002405,2]
[313816891,1707735087567,-2458.08,0.0002405,2]
[313816892,1707735087576,-500.0,0.0002405,2]
[313816893,1707735087586,-500.0,0.0002405,2]
[313816894,1707735087595,-500.0,0.0002405,2]
[313816895,1707735087604,-246.17831201,0.00024051,2]
[313816896,1707735087613,-500.0,0.00024051,2]
[313816897,1707735087622,-500.0,0.00024051,2]
[313816898,1707735087632,-500.0,0.00024051,2]
[313816899,1707735087641,-500.0,0.00024051,2]
[313816900,1707735087651,-500.0,0.00024051,2]
[313816901,1707735087660,-500.0,0.00024051,2]
[313816902,1707735087669,-500.0,0.00024051,2]
[313816903,1707735087678,-200.0,0.00024173,2]
[313816904,1707735087687,-500.0,0.00024322,2]
[313816905,1707735087697,-500.0,0.00024322,2]
[313816906,1707735087706,-579.33,0.00024322,2]
[313816907,1707735087879,-2304.48,0.00024322,2]
[313816908,1707735087901,-500.0,0.00024322,2]
[313816909,1707735087911,-6366.64,0.00024322,2]
[313816910,1707735087921,-2086.18,0.00024322,2]
[313816911,1707735087931,-862.58,0.00024322,2]
[313816912,1707735087941,-1948.16,0.00024322,2]
[313816913,1707735087950,-673.35,0.00024322,2]
[313816914,1707735087960,-500.0,0.00024322,2]
[313816915,1707735087969,-526.84,0.00024322,2]
[313816916,1707735087979,-1740.03,0.00024322,2]
[313816917,1707735087988,-500.0,0.00024322,2]
[313816918,1707735087998,-973.64,0.00024322,2]
[313816919,1707735088008,-6745.22,0.00024322,2]
[313816920,1707735088018,-509.25,0.00024322,2]
[313816921,1707735088027,-500.0,0.00024322,2]
[313816922,1707735088037,-500.0,0.00024322,2]
[313816923,1707735088046,-500.0,0.00024322,2]
[313816924,1707735088055,-505.12,0.00024322,2]
[313816925,1707735088065,-500.0,0.00024322,2]
[313816926,1707735088074,-1092.67,0.00024322,2]
[313816927,1707735088084,-2684.85,0.00024322,2]
[313816928,1707735088094,-500.0,0.00024322,2]
[313816929,1707735088103,-529.57,0.00024322,2]
[313816930,1707735088113,-602.36,0.00024322,2]
[313816931,1707735088122,-864.29,0.00024322,2]
[313816932,1707735088132,-500.0,0.00024322,2]
[313816933,1707735088141,-500.0,0.00024322,2]
[313816934,1707735088151,-497.74667166,0.00024322,2]
[313816935,1707735088160,-2142.06,0.00024322,2]
[313816936,1707735088170,-323.1289996,0.00024323,3]
[313816937,1707735088180,-500.0,0.00024323,2]
[313816938,1707735088189,-500.0,0.00024323,2]
[313816939,1707735088199,-500.0,0.00024323,2]
[313816940,1707735088208,-500.0,0.00024323,2]
[313816941,1707735088218,-500.0,0.00024323,2]
[313816942,1707735088228,-548.4,0.00024323,2]
[313816943,1707735088237,-223.17900229,0.00024323,2]
[313816944,1707735088247,-500.0,0.00024323,2]
[313816945,1707735088256,-500.0,0.00024323,2]
[313816946,1707735088265,-500.0,0.00024323,2]
[313816947,1707735088275,-500.0,0.00024323,2]
[313816948,1707735088285,-500.0,0.00024323,2]
[313816949,1707735088295,-677.22,0.00024323,2]
[313816950,1707735088305,-544.02,0.00024323,2]
[313816951,1707735088314,-500.0,0.00024323,2]
[313816952,1707735088323,-500.0,0.00024323,2]
[313816953,1707735088332,-500.0,0.00024323,2]
[313816954,1707735088342,-500.0,0.00024323,2]
[313816955,1707735088351,-559.07,0.00024323,2]
[313816956,1707735088361,-500.0,0.00024323,7]
[313816957,1707735088371,-543.92,0.00024323,2]
[313816958,1707735088380,-570.54,0.00024323,2]
[313816959,1707735088389,-536.03,0.00024323,2]
[313816960,1707735088398,-500.0,0.00024323,2]
[313816961,1707735088407,-500.0,0.00024323,2]
[313816962,1707735088417,-533.07,0.00024323,2]
[313816963,1707735088428,-574.77,0.00024323,2]
[313816964,1707735088438,-500.0,0.00024323,2]
[313816965,1707735088448,-500.0,0.00024323,2]
[313816966,1707735088461,-871.23,0.00024323,2]
[313816967,1707735088471,-500.0,0.00024323,2]
[313816968,1707735088481,-183.08483089,0.00024323,2]
[313816969,1707735088491,-643.11,0.00024323,2]
[313816970,1707735088500,-952.45,0.00024323,2]
[313816971,1707735088510,-500.0,0.00024323,2]
[313816972,1707735088519,-706.8,0.00024323,2]
[313816973,1707735088530,-972.12,0.00024323,2]
[313816974,1707735088540,-740.12,0.00024323,2]
[313816975,1707735088550,-768.67,0.00024323,2]
[313816976,1707735088560,-507.83,0.00024323,2]
[313816977,1707735088571,-653.17,0.00024323,2]
[313816978,1707735088581,-882.98,0.00024323,2]
[313816979,1707735088591,-500.0,0.00024323,2]
[313816980,1707735088600,-515.82,0.00024323,2]
[313816981,1707735088610,-500.0,0.00024323,2]
[313816982,1707735088620,-500.0,0.00024323,2]
[313816983,1707735088630,-500.0,0.00024323,2]
[313816984,1707735088640,-500.0,0.00024323,2]
[313816985,1707735088650,-500.0,0.00024323,2]
[313816986,1707735088660,-150.0,0.00024323,2]
[313816987,1707735088670,-500.0,0.00024323,2]
[313816988,1707735088680,-500.0,0.00024323,2]
[313816989,1707735088689,-270.76146943,0.00024323,2]
[313816990,1707735088699,-4432.79,0.00024323,2]
[313816991,1707735088709,-500.0,0.00024323,2]
[313816992,1707735088719,-500.0,0.00024323,2]
[313816993,1707735088729,-500.0,0.00024323,2]
[313816994,1707735088739,-2834.27,0.00024323,2]
[313816995,1707735088749,-500.0,0.00024323,2]
[313816996,1707735088759,-1272.24,0.00024323,2]
[313816997,1707735088769,-500.0,0.00024323,2]
[313816998,1707735088780,-500.0,0.00024323,2]
[313816999,1707735088790,-519.45,0.00024323,2]
[313817000,1707735088800,-500.0,0.00024323,2]
[313817001,1707735088810,-500.0,0.00024323,2]
[313817002,1707735088820,-500.0,0.00024323,2]
[313817003,1707735088831,-500.0,0.00024323,2]
[313817004,1707735088842,-500.0,0.00024323,2]
[313817005,1707735088852,-5024.21,0.00024323,2]
[313817006,1707735088862,-500.0,0.00024323,2]
[313817007,1707735088871,-340.0106824,0.00024323,2]
[313817008,1707735088881,-4933.54,0.00024323,2]
[313817009,1707735088891,-500.0,0.00024323,2]
[313817010,1707735088900,-555.59,0.00024323,2]
[313817011,1707735088914,-2897.97,0.00024323,2]
[313817012,1707735088924,-6201.98,0.00024323,2]
[313817013,1707735088935,-500.0,0.00024323,2]
[313817014,1707735088945,-2371.51,0.00024323,2]
[313817015,1707735088956,-500.0,0.00024323,2]
[313817016,1707735088966,-403.82128639,0.00024323,2]
[313817017,1707735088975,-500.0,0.00024323,2]
[313817018,1707735088985,-3045.48,0.00024323,2]
[313817019,1707735088995,-500.0,0.00024323,2]
[313817020,1707735089005,-1547.39,0.00024323,2]
[313817021,1707735089015,-846.31,0.00024323,2]
[313817022,1707735089024,-4097.96,0.00024323,2]
[313817023,1707735089035,-8400.87,0.00024323,2]
[313817024,1707735089044,-500.0,0.00024323,2]
[313817025,1707735089055,-973.53,0.00024323,2]
[313817026,1707735089065,-504.62,0.00024323,2]
[313817027,1707735089074,-500.0,0.00024323,2]
[313817028,1707735089085,-2007.99,0.00024323,2]
[313817029,1707735089095,-1445.04,0.00024323,2]
[313817030,1707735089105,-2108.56,0.00024323,2]
[313817031,1707735089115,-500.0,0.00024323,2]
[313817032,1707735089125,-778.83,0.00024323,2]
[313817033,1707735089135,-500.0,0.00024323,2]
[313817034,1707735089146,-500.0,0.00024323,2]
[313817035,1707735089156,-500.0,0.00024323,2]
[313817036,1707735089166,-751.46,0.00024323,2]
[313817037,1707735089176,-472.37176925,0.00024323,2]
[313817038,1707735089187,-678.75,0.00024323,2]
[313817039,1707735089198,-500.0,0.00024323,2]
[313817040,1707735089209,-698.3,0.00024323,2]
[313817041,1707735089220,-500.0,0.00024323,2]
[313817042,1707735089231,-552.16,0.00024323,2]
[313817043,1707735089242,-500.0,0.00024323,2]
[313817044,1707735089252,-500.0,0.00024323,2]
[313817045,1707735089262,-500.0,0.00024323,2]
[313817046,1707735089273,-2405.45,0.00024323,2]
[313817047,1707735089284,-500.0,0.00024323,2]
[313817048,1707735089294,-500.0,0.00024323,2]
[313817049,1707735089304,-2942.77,0.00024323,2]
[313817050,1707735089314,-4101.5,0.00024323,2]
[313817051,1707735089324,-500.0,0.00024323,2]
[313817052,1707735089334,-500.0,0.00024323,2]
[313817053,1707735089345,-20031.68,0.00024323,2]
[313817054,1707735089356,-500.0,0.00024323,2]
[313817055,1707735089367,-5982.13,0.00024323,2]
[313817056,1707735089378,-2670.94,0.00024323,2]
[313817057,1707735089389,-500.0,0.00024323,2]
[313817058,1707735089399,-500.0,0.00024323,2]
[313817059,1707735089409,-500.0,0.00024323,2]
[313817060,1707735089420,-2470.01,0.00024323,2]
[313817061,1707735089430,-500.0,0.00024323,2]
[313817062,1707735089442,-1147.39,0.00024323,2]
[313817063,1707735089455,-500.0,0.00024323,2]
[313817064,1707735089465,-512.26,0.00024323,2]
[313817065,1707735089475,-454.1887034,0.00024323,2]
[313817066,1707735089484,-689.37,0.00024323,2]
[313817067,1707735089495,-528.76,0.00024323,2]
[313817068,1707735089505,-710.54,0.00024323,2]
[313817069,1707735089515,-500.0,0.00024323,2]
[313817070,1707735089526,-163.2412911,0.00024323,2]
[313817071,1707735089536,-7132.65,0.00024323,2]
[313817072,1707735089547,-564.74889292,0.00024323,2]
[313817073,1707735089557,-1207.55,0.00024323,2]
[313817074,1707735089567,-1690.53,0.00024323,2]
[313817075,1707735089577,-500.0,0.00024323,2]
[313817076,1707735089587,-500.0,0.00024323,2]
[313817077,1707735089598,-767.62,0.00024323,2]
[313817078,1707735089608,-768.44,0.00024323,2]
[313817079,1707735089618,-2328.9,0.00024323,2]
[313817080,1707735089628,-6830.87,0.00024323,2]
[313817081,1707735089638,-581.45,0.00024323,2]
[313817082,1707735089648,-500.0,0.00024323,2]
[313817083,1707735089658,-550.33,0.00024323,2]
[313817084,1707735089670,-500.0,0.00024323,2]
[313817085,1707735089680,-2234.17,0.00024323,2]
[313817086,1707735089691,-1353.61,0.00024323,2]
[313817087,1707735089701,-589.69,0.00024323,2]
[313817088,1707735089711,-207.6,0.00024323,2]
[313817089,1707735089722,-500.0,0.00024323,2]
[313817090,1707735089733,-1145.24,0.00024323,2]
[313817091,1707735089743,-996.07,0.00024323,2]
[313817092,1707735089752,-1751.56,0.00024323,2]
[313817093,1707735089763,-1680.13,0.00024323,2]
[313817094,1707735089773,-727.06,0.00024323,2]
[313817095,1707735089783,-500.0,0.00024323,2]
[313817096,1707735089793,-1151.45,0.00024323,2]
[313817097,1707735089803,-310.54630104,0.00024323,2]
[313817098,1707735089813,-500.0,0.00024323,2]
[313817099,1707735089823,-1447.65,0.00024323,2]
[313817100,1707735089833,-500.0,0.00024323,2]
[313817101,1707735089842,-2805.58,0.00024323,2]
[313817102,1707735089852,-1232.65,0.00024323,2]
[313817103,1707735089861,-500.0,0.00024323,2]
[313817104,1707735089871,-288.41989151,0.00024323,2]
[313817105,1707735089880,-500.0,0.00024323,2]
[313817106,1707735089890,-599.44176773,0.00024323,2]
[313817107,1707735089900,-500.0,0.00024323,2]
[313817108,1707735089910,-843.89,0.00024323,2]
[313817109,1707735089920,-1190.91,0.00024323,2]
[313817110,1707735089930,-500.0,0.00024323,2]
[313817111,1707735089940,-9748.41,0.00024323,2]
[313817112,1707735089951,-899.12,0.00024323,2]
[313817113,1707735089961,-2215.09,0.00024323,2]
[313817114,1707735089971,-620.29,0.00024323,2]
[313817115,1707735089981,-500.0,0.00024323,2]
[313817116,1707735089990,-256.93573311,0.00024323,2]
[313817117,1707735090000,-500.0,0.00024323,2]
[313817118,1707735090010,-500.0,0.00024323,2]
[313817119,1707735090020,-600.94,0.00024323,2]
[313817120,1707735090030,-500.0,0.00024323,2]
[313817121,1707735090040,-879.84,0.00024323,2]
[313817122,1707735090050,-572.36,0.00024323,2]
[313817123,1707735090060,-500.0,0.00024323,2]
[313817124,1707735090070,-500.0,0.00024323,2]
[313817125,1707735090080,-2783.52,0.00024323,2]
[313817126,1707735090090,-690.15,0.00024323,2]
[313817127,1707735090100,-910.37,0.00024323,2]
[313817128,1707735090109,-960.48,0.00024323,2]
[313817129,1707735090120,-588.11,0.00024323,2]
[313817130,1707735090130,-767.89,0.00024323,2]
[313817131,1707735090140,-500.0,0.00024323,2]
[313817132,1707735090150,-500.0,0.00024323,2]
[313817133,1707735090160,-788.8,0.00024323,2]
[313817134,1707735090172,-2092.79,0.00024323,2]
[313817135,1707735090182,-921.9,0.00024323,2]
[313817136,1707735090192,-2812.9,0.00024323,2]
[313817137,1707735090202,-309.11745245,0.00024323,2]
[313817138,1707735090213,-172.98712959,0.00024324,2]
[313817139,1707735090222,-500.0,0.00024324,2]
[313817140,1707735090232,-500.0,0.00024324,2]
[313817141,1707735090242,-500.0,0.00024324,2]
[313817142,1707735090252,-500.0,0.00024324,2]
[313817143,1707735090263,-500.0,0.00024324,2]
[313817144,1707735090272,-500.0,0.00024324,2]
[313817145,1707735090284,-500.0,0.00024324,2]
[313817146,1707735090294,-587.83321795,0.00024324,2]
[313817147,1707735090304,-500.0,0.00024324,2]
[313817148,1707735090314,-500.0,0.00024324,2]
[313817149,1707735090324,-500.0,0.00024324,2]
[313817150,1707735090334,-500.0,0.00024324,2]
[313817151,1707735090344,-500.0,0.00024324,2]
[313817152,1707735090354,-500.0,0.00024324,2]
[313817153,1707735090365,-564.35,0.00024324,2]
[313817154,1707735090445,-939.38,0.00024324,2]
[313817155,1707735090455,-164.00075318,0.00024324,2]
[313817156,1707735090465,-459.12283447,0.00024324,2]
[313817157,1707735090475,-500.0,0.00024324,2]
[313817158,1707735090487,-568.5,0.00024324,2]
[313817159,1707735090497,-500.0,0.00024324,2]
[313817160,1707735090507,-500.0,0.00024324,2]
[313817161,1707735090517,-500.0,0.00024324,2]
[313817162,1707735090529,-615.97,0.00024324,2]
[313817163,1707735090541,-500.0,0.00024324,2]
[313817164,1707735090551,-500.0,0.00024324,2]
[313817165,1707735090560,-808.34,0.00024324,2]
[313817166,1707735090572,-500.0,0.00024324,2]
[313817167,1707735090581,-500.0,0.00024324,2]
[313817168,1707735090591,-500.0,0.00024324,2]
[313817169,1707735090601,-500.0,0.00024324,2]
[313817170,1707735090611,-500.0,0.00024324,2]
[313817171,1707735090621,-500.0,0.00024324,2]
[313817172,1707735090631,-500.0,0.00024324,2]
[313817173,1707735090642,-500.0,0.00024324,2]
[313817174,1707735090652,-500.0,0.00024324,2]
[313817175,1707735090662,-500.0,0.00024324,2]
[313817176,1707735090672,-500.0,0.00024324,2]
[313817177,1707735090682,-240.68956039,0.00024324,2]
[313817178,1707735090692,-633.84709136,0.00024324,2]
[313817179,1707735090703,-500.0,0.00024324,2]
[313817180,1707735090713,-500.0,0.00024324,2]
[313817181,1707735090723,-500.0,0.00024324,2]
[313817182,1707735090733,-500.0,0.00024324,2]
[313817183,1707735090743,-500.0,0.00024324,2]
[313817184,1707735090753,-500.0,0.00024324,2]
[313817185,1707735090762,-500.0,0.00024324,2]
[313817186,1707735090773,-500.0,0.00024324,2]
[313817187,1707735090783,-509.14,0.00024324,2]
[313817188,1707735090792,-500.0,0.00024324,2]
[313817189,1707735090802,-783.3,0.00024324,2]
[313817190,1707735090811,-500.0,0.00024324,2]
[313817191,1707735090820,-707.32,0.00024324,2]
[313817192,1707735090829,-500.0,0.00024324,2]
[313817193,1707735090838,-500.0,0.00024324,2]
[313817194,1707735090848,-500.0,0.00024324,2]
[313817195,1707735090857,-500.0,0.00024324,2]
[313817196,1707735090866,-500.0,0.00024324,2]
[313817197,1707735090876,-618.89,0.00024324,2]
[313817198,1707735090886,-500.0,0.00024324,2]
[313817199,1707735090895,-500.0,0.00024324,2]
[313817200,1707735090905,-500.0,0.00024324,2]
[313817201,1707735090914,-500.0,0.00024324,2]
[313817202,1707735090924,-500.0,0.00024324,2]
[313817203,1707735090933,-2711.38,0.00024324,2]
[313817204,1707735090943,-500.0,0.00024324,2]
[313817205,1707735090953,-1469.44,0.00024324,2]
[313817206,1707735090963,-681.86,0.00024324,2]
[313817207,1707735090972,-500.0,0.00024324,2]
[313817208,1707735090981,-537.01,0.00024324,2]
[313817209,1707735090990,-2252.02,0.00024324,2]
[313817210,1707735091001,-688.56,0.00024324,2]
[313817211,1707735091011,-500.0,0.00024324,2]
[313817212,1707735091020,-500.0,0.00024324,2]
[313817213,1707735091030,-563.92730529,0.00024324,2]
[313817214,1707735091039,-410.07853559,0.00024324,2]
[313817215,1707735091049,-500.0,0.00024324,2]
[313817216,1707735091058,-500.0,0.00024324,2]
[313817217,1707735091068,-500.0,0.00024324,2]
[313817218,1707735091077,-500.0,0.00024324,2]
[313817219,1707735091086,-551.47422817,0.00024324,2]
[313817220,1707735091096,-500.0,0.00024324,2]
[313817221,1707735091106,-1838.36,0.00024324,2]
[313817222,1707735091115,-500.0,0.00024324,2]
[313817223,1707735091125,-500.0,0.00024324,2]
[313817224,1707735091136,-500.0,0.00024324,2]
[313817225,1707735091146,-500.0,0.00024324,2]
[313817226,1707735091156,-500.0,0.00024324,2]
[313817227,1707735091167,-500.0,0.00024324,2]
[313817228,1707735091176,-500.0,0.00024324,2]
[313817229,1707735091186,-500.0,0.00024324,2]
[313817230,1707735091196,-500.0,0.00024324,2]
[313817231,1707735091206,-653.74,0.00024324,2]
[313817232,1707735091216,-500.0,0.00024324,2]